Workbook

Sheet Linear Regression (hidden)
B2: Exhibit 18.8 - Excel Regression Tool
B4: Quarter | C4: Sales
B5: 1 | C5: 600
B6: 2 | C6: 1550
B7: 3 | C7: 1500
B8: 4 | C8: 1500
B9: 5 | C9: 2400
B10: 6 | C10: 3100
B11: 7 | C11: 2600
B12: 8 | C12: 2900
B13: 9 | C13: 3800
B14: 10 | C14: 4500
B15: 11 | C15: 4000
B16: 12 | C16: 4900
B19: SUMMARY OUTPUT
B21: Regression Statistics
B22: Multiple R | C22: 0.9660155804
B23: R Square | C23: 0.9331861016
B24: Adjusted R Square | C24: 0.9265047117
B25: Standard Error | C25: 363.8777972
B26: Observations | C26: 12
B28: ANOVA
C29: df | D29: SS | E29: MS | F29: F | G29: Significance F
B30: Regression | C30: 1 | D30: 18493221.15 | E30: 18493221.15 | F30: 139.6694585 | G30: 3.372024119e-07
B31: Residual | C31: 10 | D31: 1324070.513 | E31: 132407.0513
B32: Total | C32: 11 | D32: 19817291.67
C34: Coefficients | D34: Standard Error | E34: t Stat | F34: P-value | G34: Lower 95% | H34: Upper 95% | I34: Lower 95.0% | J34: Upper 95.0%
B35: Intercept | C35: 441.6666667 | D35: 223.9513029 | E35: 1.972154932 | F35: 0.07686869452 | G35: -57.32801873 | H35: 940.6613521 | I35: -57.32801873 | J35: 940.6613521
B36: X Variable 1 | C36: 359.6153846 | D36: 30.42899005 | E36: 11.81818338 | F36: 3.372024119e-07 | G36: 291.8153579 | H36: 427.4154113 | I36: 291.8153579 | J36: 427.4154113

Sheet Linear-LeastSq Regression
F1: Please enter 19 numbers in the blue shaded cells. | Q1: https://www.random.org/integers/
B2: Least Squares Regression Template | F2: These numbers will be automatially added to the Moving Average and Exponential woksheets
F3: Do not change any other numbers.
B6: (1) | C6: (2) | D6: (3) | E6: (4) | F6: (5) | G6: (6)
B7: x | C7: y | D7: xy | E7: x2 | F7: y2 | G7: Ŷ
B8: Period | C8: Metric | I8: DESEASONALIZED | L8: SEASONALIZED
B9: 1 | C9: 62 | D9: =IF(B9="","",B9*C9) -> 62 | E9: =IF(B9="","",B9^2) -> 1 | F9: =IF(B9="","",C9^2) -> 3844 | G9: =IF(B9="","",$C$34+(B9*$C$33)) -> 70.56842105 | I9: FORECAST | L9: FORECAST
B10: 2 | C10: 65 | D10: =IF(B10="","",B10*C10) -> 130 | E10: =IF(B10="","",B10^2) -> 4 | F10: =IF(B10="","",C10^2) -> 4225 | G10: 70.85614035
B11: 3 | C11: 67 | D11: 201 | E11: 9 | F11: 4489 | G11: 71.14385965 | I11: x | L11: Seasonal
B12: 4 | C12: 68 | D12: 272 | E12: 16 | F12: 4624 | G12: 71.43157895 | I12: Period | J12: yd | L12: Factor | M12: ys
B13: 5 | C13: 71 | D13: 355 | E13: 25 | F13: 5041 | G13: 71.71929825 | I13: 9 | J13: =IF(I13="","",$C$34+$C$33*I13) -> 72.87017544 | L13: 0.527 | M13: =IF(L13="","",J13*L13) -> 38.40258246
B14: 6 | C14: 73 | D14: 438 | E14: 36 | F14: 5329 | G14: 72.00701754 | I14: 10 | J14: 73.15789474 | L14: 0.957 | M14: =IF(L14="","",J14*L14) -> 70.01210526
B15: 7 | C15: 76 | D15: 532 | E15: 49 | F15: 5776 | G15: 72.29473684 | I15: 11 | J15: 73.44561404 | L15: 1.529 | M15: 112.2983439
B16: 8 | C16: 78 | D16: 624 | E16: 64 | F16: 6084 | G16: 72.58245614 | I16: 12 | J16: 73.73333333 | L16: 0.987 | M16: 72.7748
B17: 9 | C17: 78 | D17: 702 | E17: 81 | F17: 6084 | G17: 72.87017544
B18: 10 | C18: 80 | D18: 800 | E18: 100 | F18: 6400 | G18: 73.15789474
B19: 11 | C19: 84 | D19: 924 | E19: 121 | F19: 7056 | G19: 73.44561404
B20: 12 | C20: 85 | D20: =IF(B20="","",B20*C20) -> 1020 | E20: =IF(B20="","",B20^2) -> 144 | F20: =IF(B20="","",C20^2) -> 7225 | G20: =IF(B20="","",$C$34+(B20*$C$33)) -> 73.73333333
B21: 13 | C21: 72 | D21: 936 | E21: 169 | F21: 5184 | G21: 74.02105263
B22: 14 | C22: 84 | D22: 1176 | E22: 196 | F22: 7056 | G22: 74.30877193
B23: 15 | C23: 67 | D23: 1005 | E23: 225 | F23: 4489 | G23: 74.59649123
B24: 16 | C24: 82 | D24: 1312 | E24: 256 | F24: 6724 | G24: 74.88421053
B25: 17 | C25: 62 | D25: 1054 | E25: 289 | F25: 3844 | G25: 75.17192982
B26: 18 | C26: 63 | D26: 1134 | E26: 324 | F26: 3969 | G26: 75.45964912
B27: 19 | C27: 73 | D27: 1387 | E27: 361 | F27: 5329 | G27: =IF(B27="","",$C$34+(B27*$C$33)) -> 75.74736842 | J27: =IF(I27="","",$C$34+$C$33*I27) -> 
B29: =SUM(B9:B27) -> 190 | C29: =SUM(C9:C27) -> 1390 | D29: =SUM(D9:D27) -> 14064 | E29: =SUM(E9:E27) -> 2470 | F29: =SUM(F9:F27) -> 102772
C31: =B29/COUNT(C9:C27) -> 10 | D31: = X-bar
C32: =C29/COUNT(C9:C27) -> 73.15789474 | D32: = Y-bar
C33: =(D29-(COUNT(C9:C27)*C31*C32))/(E29-(COUNT(C9:C27)*C31^2)) -> 0.2877192982 | D33: = b
C34: =C32-(C33*C31) -> 70.28070175 | D34: = a
C37: =CONCATENATE("Regression Equation is Y = ",FIXED(C33,2),"*X",IF(C34<0," - "," + "),C34) -> Regression Equation is Y = 0.29*X + 70.280701754386

Sheet Moving Average
I2: Do not change any number.
C3: Moving Average | I3: It's OK to adjust the small black arrows next to the Big Yellow arrow
C7: Period | D7: Metric | E7: Forecast | R7: Forecast | U7: Error | V7: Erro^2
C8: 1 | D8: ='Linear-LeastSq Regression'!C9 -> 62 | E8: =IF(ISNA(R8),"",R8) ->  | F8: =IF(C8=Time_Period,"«««","") ->  | S8: =IF(OR(ISBLANK(D8),ISNA(R8)),#N/A,D8-R8) ->  | T8: =IF(ISNA(S8),"",S8) ->  | U8: =IF(ISNA(S8),"",ABS(S8)) ->  | V8: =IF(ISNA(S8),"",S8^2) -> 
C9: =IF(D9="","",C8+1) -> 2 | D9: ='Linear-LeastSq Regression'!C10 -> 65 | K9: Number of Periods in MA | L9: 3 | R9: =IF(ISBLANK(D8),#N/A,IF($L$9=1,D8,#N/A)) -> 
C10: 3 | D10: ='Linear-LeastSq Regression'!C11 -> 67 | R10: =IF(ISBLANK(D9),#N/A,IF($L$9=1,D9,IF($L$9=2,AVERAGE(D8:D9),#N/A))) -> 
C11: 4 | D11: ='Linear-LeastSq Regression'!C12 -> 68 | E11: 64.66666667 | R11: =IF(ISBLANK(D10),#N/A,IF($L$9=1,D10,IF($L$9=2,AVERAGE(D9:D10),IF($L$9=3,AVERAGE(D8:D10),#N/A)))) -> 64.66666667 | S11: 3.333333333 | T11: 3.333333333 | U11: 3.333333333 | V11: 11.11111111
C12: 5 | D12: ='Linear-LeastSq Regression'!C13 -> 71 | E12: 66.66666667 | I12: MAD | J12: =U28/COUNT(U8:U27) -> 6.208333333 | R12: =IF(ISBLANK(D11),#N/A,IF($L$9=1,D11,IF($L$9=2,AVERAGE(D10:D11),IF($L$9=3,AVERAGE(D9:D11),IF($L$9=4,AVERAGE(D8:D11),#N/A))))) -> 66.66666667 | S12: 4.333333333 | T12: 4.333333333 | U12: 4.333333333 | V12: 18.77777778
C13: 6 | D13: ='Linear-LeastSq Regression'!C14 -> 73 | E13: 68.66666667 | I13: MSE | J13: =V28/(COUNT(V8:V27)-1) -> 56.32592593 | R13: =IF(ISBLANK(D12),#N/A,IF($L$9=1,D12,IF($L$9=2,AVERAGE(D11:D12),IF($L$9=3,AVERAGE(D10:D12),IF($L$9=4,AVERAGE(D9:D12),IF($L$9=5,AVERAGE(D8:D12),#N/A)))))) -> 68.66666667 | S13: 4.333333333 | T13: 4.333333333 | U13: 4.333333333 | V13: 18.77777778
C14: 7 | D14: ='Linear-LeastSq Regression'!C15 -> 76 | E14: 70.66666667 | R14: =IF(ISBLANK(D13),#N/A,IF($L$9=1,D13,IF($L$9=2,AVERAGE(D12:D13),IF($L$9=3,AVERAGE(D11:D13),IF($L$9=4,AVERAGE(D10:D13),IF($L$9=5,AVERAGE(D9:D13),IF($L$9=6,AVERAGE(D8:D13),""))))))) -> 70.66666667 | S14: 5.333333333 | T14: 5.333333333 | U14: 5.333333333 | V14: 28.44444444
C15: 8 | D15: ='Linear-LeastSq Regression'!C16 -> 78 | E15: 73.33333333 | R15: 73.33333333 | S15: 4.666666667 | T15: 4.666666667 | U15: 4.666666667 | V15: 21.77777778
C16: 9 | D16: ='Linear-LeastSq Regression'!C17 -> 78 | E16: 75.66666667 | R16: 75.66666667 | S16: 2.333333333 | T16: 2.333333333 | U16: 2.333333333 | V16: 5.444444444
C17: 10 | D17: ='Linear-LeastSq Regression'!C18 -> 80 | E17: 77.33333333 | R17: 77.33333333 | S17: 2.666666667 | T17: 2.666666667 | U17: 2.666666667 | V17: 7.111111111
C18: 11 | D18: ='Linear-LeastSq Regression'!C19 -> 84 | E18: 78.66666667 | R18: 78.66666667 | S18: 5.333333333 | T18: 5.333333333 | U18: 5.333333333 | V18: 28.44444444
C19: 12 | D19: ='Linear-LeastSq Regression'!C20 -> 85 | E19: 80.66666667 | R19: 80.66666667 | S19: 4.333333333 | T19: 4.333333333 | U19: 4.333333333 | V19: 18.77777778
C20: 13 | D20: ='Linear-LeastSq Regression'!C21 -> 72 | E20: 83 | R20: 83 | S20: -11 | T20: -11 | U20: 11 | V20: 121
C21: 14 | D21: ='Linear-LeastSq Regression'!C22 -> 84 | E21: 80.33333333 | K21: X | L21: Y | R21: 80.33333333 | S21: 3.666666667 | T21: 3.666666667 | U21: 3.666666667 | V21: 13.44444444
C22: 15 | D22: ='Linear-LeastSq Regression'!C23 -> 67 | E22: 80.33333333 | K22: =Time_Period -> 19 | L22: 0 | R22: 80.33333333 | S22: -13.33333333 | T22: -13.33333333 | U22: 13.33333333 | V22: 177.7777778
C23: 16 | D23: ='Linear-LeastSq Regression'!C24 -> 82 | E23: 74.33333333 | K23: =Time_Period -> 19 | L23: =L10 -> 0 | R23: 74.33333333 | S23: 7.666666667 | T23: 7.666666667 | U23: 7.666666667 | V23: 58.77777778
C24: 17 | D24: ='Linear-LeastSq Regression'!C25 -> 62 | E24: 77.66666667 | R24: 77.66666667 | S24: -15.66666667 | T24: -15.66666667 | U24: 15.66666667 | V24: 245.4444444
C25: 18 | D25: ='Linear-LeastSq Regression'!C26 -> 63 | E25: 70.33333333 | R25: 70.33333333 | S25: -7.333333333 | T25: -7.333333333 | U25: 7.333333333 | V25: 53.77777778
C26: 19 | D26: ='Linear-LeastSq Regression'!C27 -> 73 | E26: 69 | F26: ««« | K26: Smoothing Constant: | M26: 1 | R26: 69 | S26: 4 | T26: 4 | U26: 4 | V26: 16
E27: 66 | K27: Time Period | L27: 19 | R27: 66
S28: Sum | U28: =SUM(U8:U27) -> 99.33333333 | V28: =SUM(V8:V27) -> 844.8888889

Sheet Exponential
I1: Do not change any number.
B2: Exponential Smoothing | I2: It's OK to adjust the small black arrows next to the Big Yellow arrow
AT3: 0.01 | AU3: 0.025
B4: Period | C4: Metric' | D4: Forecast | P4: t | Q4: Sales | R4: Forecast | T4: Error | U4: Error^2 | V4: Error | W4: Error^2 | AP4: Sigmas equal? | AQ4: 1 | AT4: 0.05 | AU4: 0.05
B5: 1 | C5: ='Linear-LeastSq Regression'!C9 -> 62 | D5: =C5 -> 62 | Q5: =C5 -> 62 | R5: =D5 -> 62 | T5: =IF(OR(Q5="",R5=""),"",ABS(Q5-R5)) -> 0 | U5: =IF(T5="","",T5^2) -> 0 | V5: =IF(ISNA(T5),"",T5) -> 0 | W5: =IF(ISNA(U5),"",U5) -> 0 | AP5: Significance level | AQ5: 0.1 | AT5: 0.1 | AU5: 0.1
B6: =IF(C6="","",B5+1) -> 2 | C6: ='Linear-LeastSq Regression'!C10 -> 65 | D6: =IF(ISNA(R6),"",R6) -> 62 | I6: Smoothing Constant: | J6: =K24/100 -> 0.43 | Q6: 65 | R6: =IF(ISBLANK(C6),#N/A,R5+Smoothing_Constant*(Q5-R5)) -> 62 | T6: 3 | U6: 9 | V6: 3 | W6: 9 | AP6: Randomizer | AQ6: 0.9296864271
B7: 3 | C7: ='Linear-LeastSq Regression'!C11 -> 67 | D7: 63.29 | Q7: 67 | R7: 63.29 | T7: 3.71 | U7: 13.7641 | V7: 3.71 | W7: 13.7641 | AP7: Confidence_level | AQ7: =1-Significance_level -> 0.9
B8: 4 | C8: ='Linear-LeastSq Regression'!C12 -> 68 | D8: 64.8853 | Q8: 68 | R8: 64.8853 | T8: 3.1147 | U8: 9.70135609 | V8: 3.1147 | W8: 9.70135609 | AP8: Answer allowance | AQ8: 0.01
B9: 5 | C9: ='Linear-LeastSq Regression'!C13 -> 71 | D9: 66.224621 | I9: MAD | J9: =$V$25/COUNT($V$5:$V$23) -> 6.009135929 | Q9: 71 | R9: 66.224621 | T9: 4.775379 | U9: 22.80424459 | V9: 4.775379 | W9: 22.80424459 | AP9: PlannedAdExpense | AQ9: 10313
B10: 6 | C10: ='Linear-LeastSq Regression'!C14 -> 73 | D10: 68.27803397 | I10: MSE | J10: =$W$25/(COUNT($W$5:$W$23)-1) -> 52.5062091 | Q10: 73 | R10: 68.27803397 | T10: 4.72196603 | U10: 22.29696319 | V10: 4.72196603 | W10: 22.29696319
B11: 7 | C11: ='Linear-LeastSq Regression'!C15 -> 76 | D11: 70.30847936 | Q11: 76 | R11: 70.30847936 | T11: 5.691520637 | U11: 32.39340716 | V11: 5.691520637 | W11: 32.39340716 | AP11: Y_hat_UL | AQ11: =Y_hat+TINV(Significance_level,dfE)*s*SQRT(1+(1/COUNT(x))+((PlannedAdExpense-AVERAGE(x))^2)/SSx) -> 
B12: 8 | C12: ='Linear-LeastSq Regression'!C16 -> 78 | D12: 72.75583324 | Q12: 78 | R12: 72.75583324 | T12: 5.244166763 | U12: 27.50128504 | V12: 5.244166763 | W12: 27.50128504 | AP12: Y_hat_LL | AQ12: =Y_hat-TINV(Significance_level,dfE)*s*SQRT(1+(1/COUNT(x))+((PlannedAdExpense-AVERAGE(x))^2)/SSx) -> 
B13: 9 | C13: ='Linear-LeastSq Regression'!C17 -> 78 | D13: 75.01082495 | Q13: 78 | R13: 75.01082495 | T13: 2.989175055 | U13: 8.935167509 | V13: 2.989175055 | W13: 8.935167509
B14: 10 | C14: ='Linear-LeastSq Regression'!C18 -> 80 | D14: 76.29617022 | Q14: 80 | R14: 76.29617022 | T14: 3.703829781 | U14: 13.71835505 | V14: 3.703829781 | W14: 13.71835505
B15: 11 | C15: ='Linear-LeastSq Regression'!C19 -> 84 | D15: 77.88881702 | Q15: 84 | R15: 77.88881702 | T15: 6.111182975 | U15: 37.34655736 | V15: 6.111182975 | W15: 37.34655736
B16: 12 | C16: ='Linear-LeastSq Regression'!C20 -> 85 | D16: 80.5166257 | Q16: 85 | R16: 80.5166257 | T16: 4.483374296 | U16: 20.10064508 | V16: 4.483374296 | W16: 20.10064508
B17: 13 | C17: ='Linear-LeastSq Regression'!C21 -> 72 | D17: 82.44447665 | Q17: 72 | R17: 82.44447665 | T17: 10.44447665 | U17: 109.0870925 | V17: 10.44447665 | W17: 109.0870925
B18: 14 | C18: ='Linear-LeastSq Regression'!C22 -> 84 | D18: 77.95335169 | Q18: 84 | R18: 77.95335169 | T18: 6.046648309 | U18: 36.56195577 | V18: 6.046648309 | W18: 36.56195577
B19: 15 | C19: ='Linear-LeastSq Regression'!C23 -> 67 | D19: 80.55341046 | I19: X | J19: Y | Q19: 67 | R19: 80.55341046 | T19: 13.55341046 | U19: 183.6949352 | V19: 13.55341046 | W19: 183.6949352
B20: 16 | C20: ='Linear-LeastSq Regression'!C24 -> 82 | D20: 74.72544396 | I20: =Time_Period1 -> 6 | J20: 0 | Q20: 82 | R20: 74.72544396 | T20: 7.274556036 | U20: 52.91916551 | V20: 7.274556036 | W20: 52.91916551 | AU20: A | AV20: =AVERAGE(y)-B*(AVERAGE(x)) -> 
B21: 17 | C21: ='Linear-LeastSq Regression'!C25 -> 62 | D21: 77.85350306 | I21: =Time_Period1 -> 6 | J21: =J7 -> 0 | Q21: 62 | R21: 77.85350306 | T21: =IF(OR(Q21="",R21=""),"",ABS(Q21-R21)) -> 15.85350306 | U21: =IF(T21="","",T21^2) -> 251.3335593 | V21: =IF(ISNA(T21),"",T21) -> 15.85350306 | W21: =IF(ISNA(U21),"",U21) -> 251.3335593 | AU21: B | AV21: =SSxy/SSx -> 
B22: 18 | C22: ='Linear-LeastSq Regression'!C26 -> 63 | D22: 71.03649674 | Q22: 63 | R22: 71.03649674 | T22: 8.036496744 | U22: 64.58527992 | V22: 8.036496744 | W22: 64.58527992 | AU22: SSxy | AV22: =SUM(XY)-(SUM(x)*SUM(y)/COUNT(x)) -> 
B23: 19 | C23: ='Linear-LeastSq Regression'!C27 -> 73 | D23: 67.58080314 | Q23: 73 | R23: 67.58080314 | T23: 5.419196856 | U23: 29.36769456 | V23: 5.419196856 | W23: 29.36769456 | AU23: SSx | AV23: =SUM(x2_)-((SUM(x)*SUM(x))/COUNT(x)) -> 
D24: 0 | I24: Smoothing Constant: | K24: 43 | AP24: Your pvalue | AQ24: =#REF! ->  | AR24: =IF(#REF!="",0,IF(AND(AQ25<0.0001,AQ24<0.0001),1,0)) ->  | AT24: =IF(#REF!="",0,IF(AND(#REF!>#REF!*(1-Answer_allowance),#REF!<#REF!*(1+Answer_allowance)),1,0)) ->  | AU24: SSy | AV24: =SUM(y2_)-SUM(y)^2/COUNT(y) -> 
I25: Time Period | J25: 6 | U25: Sum | V25: =SUM(V5:V23) -> 114.1735827 | W25: =SUM(W5:W23) -> 945.1117638 | AP25: Correct pvalue | AQ25: =p_value_t -> 
AU30: x | AV30: y | AW30: x2 | AX30: y2 | AY30: XY | AZ30: Ybar | BA30: y-ybar | BB30: x-xbar | BC30: Forecast
AU31: =IF(C5="","",B5) -> 1 | AV31: =IF(C5<>"",C5,"") -> 62 | AW31: =IF(AU31<>"",AU31^2,"") -> 1 | AX31: =IF(AU31<>"",AV31^2,"") -> 3844 | AY31: =IF(AU31<>"",AU31*AV31,"") -> 62 | AZ31: =IF(AU31<>"",AVERAGE(y),"") ->  | BA31: =IF(AZ31="","",y-Ybar) ->  | BB31: =IF(x="","",x-AVERAGE(x)) ->  | BC31: =A+B5*B -> 
AU32: =IF(C6="","",B6) -> 2 | AV32: =IF(C6<>"",C6,"") -> 65 | AW32: 4 | AX32: 4225 | AY32: 130 | BC32: =A+B6*B ->  | BE32: SUMMARY OUTPUT
AU33: =IF(C7="","",B7) -> 3 | AV33: =IF(C7<>"",C7,"") -> 67 | AW33: 9 | AX33: 4489 | AY33: 201 | BC33: =A+B7*B -> 
AU34: =IF(C8="","",B8) -> 4 | AV34: =IF(C8<>"",C8,"") -> 68 | AW34: 16 | AX34: 4624 | AY34: 272 | BC34: =A+B8*B ->  | BE34: Regression Statistics
AU35: =IF(C9="","",B9) -> 5 | AV35: =IF(C9<>"",C9,"") -> 71 | AW35: 25 | AX35: 5041 | AY35: 355 | BC35: =A+B9*B ->  | BE35: Multiple R | BF35: =(SSxy/SQRT(SSx*SSy)) -> 
AU36: =IF(C24="","",B24) ->  | AV36: =IF(C24<>"",C24,"") ->  | BC36: =A+B24*B ->  | BE36: Advertising Exp | BF36: =B ->  | BG36: =s/SQRT(SSx) ->  | BH36: =Slope/BG36 ->  | BI36: =TDIST(BH36,Observations-2,2) ->  | BJ36: =Slope-TINV(Significance_level,Observations-2)*BG36 ->  | BK36: =Slope+TINV(Significance_level,Observations-2)*BG36 -> 
AU37: =IF(#REF!="","",#REF!) ->  | AV37: =IF(#REF!<>"",#REF!,"") ->  | BC37: =A+#REF!*B -> 
AU38: =IF(#REF!="","",#REF!) ->  | AV38: =IF(#REF!<>"",#REF!,"") ->  | BC38: =A+#REF!*B -> 
AU39: =IF(#REF!="","",#REF!) ->  | AV39: =IF(#REF!<>"",#REF!,"") ->  | BC39: =A+#REF!*B ->  | BE39: =CONCATENATE(Confidence_level*100,"% Prediction Interval Estimate") -> 90% Prediction Interval Estimate
AU40: =IF(#REF!="","",#REF!) ->  | AV40: =IF(#REF!<>"",#REF!,"") ->  | BC40: =A+#REF!*B ->  | BE40: Upper Limit | BF40: =Y_hat_UL -> 
AU41: =IF(#REF!="","",#REF!) ->  | AV41: =IF(#REF!<>"",#REF!,"") ->  | BC41: =A+#REF!*B ->  | BE41: Lower Limit | BF41: =n -> 
AU42: =IF(#REF!="","",#REF!) ->  | AV42: =IF(#REF!<>"",#REF!,"") ->  | BC42: =A+#REF!*B -> 
AU43: =IF(#REF!="","",#REF!) ->  | AV43: =IF(#REF!<>"",#REF!,"") ->  | BC43: =A+#REF!*B -> 
AU44: =IF(#REF!="","",#REF!) ->  | AV44: =IF(#REF!<>"",#REF!,"") ->  | BC44: =A+#REF!*B -> 
AU45: =IF(#REF!="","",#REF!) ->  | AV45: =IF(#REF!<>"",#REF!,"") ->  | BC45: =A+#REF!*B -> 
AU46: =IF(#REF!="","",#REF!) ->  | AV46: =IF(#REF!<>"",#REF!,"") ->  | BC46: =A+#REF!*B -> 
AU47: =IF(#REF!="","",#REF!) ->  | AV47: =IF(#REF!<>"",#REF!,"") ->  | BC47: =A+#REF!*B -> 
AU48: =IF(C25="","",B25) ->  | AV48: =IF(C25<>"",C25,"") ->  | BC48: =A+B25*B -> 
AU49: =IF(#REF!="","",#REF!) ->  | AV49: =IF(#REF!<>"",#REF!,"") ->  | BC49: =A+#REF!*B -> 
AU50: =IF(#REF!="","",#REF!) ->  | AV50: =IF(#REF!<>"",#REF!,"") ->  | BC50: =A+#REF!*B -> 

Sheet MAD and Tracking Signals (hidden)
B2: MAD and Tracking Signal
B4: Period | C4: Actual | D4: Forecast
B5: 1 | C5: 700 | D5: 660
B6: 2 | C6: 760 | D6: 840
B7: 3 | C7: 780 | D7: 750
B8: 4 | C8: 790 | D8: 835
B9: 5 | C9: 850 | D9: 910
B10: 6 | C10: 950 | D10: 890
B20: Solution
C21: Actual Demand | D21: Forecast Demand | E21: Actual Deviation | F21: Cumulative Deviation (RSFE) | G21: Absolute Deviation | H21: Sum of Abs. Dev. | I21: MAD* | J21: TS=RSFE/MAD
B22: =IF(C5="","",B5) -> 1 | C22: =IF(C5="","",C5) -> 700 | D22: 660 | E22: =IF(B5="","",C22-D22) -> 40 | F22: =IF(B22="","",E22) -> 40 | G22: =IF(B5="","",ABS(E22)) -> 40 | H22: =IF(C5="","",G22) -> 40 | I22: =IF(C5="","",H22/B22) -> 40 | J22: =IF(C5="","",F22/I22) -> 1
B23: =IF(C6="","",B6) -> 2 | C23: 760 | D23: 840 | E23: =IF(B6="","",C23-D23) -> -80 | F23: =IF(B23="","",E23+F22) -> -40 | G23: =IF(B6="","",ABS(E23)) -> 80 | H23: =IF(G23="","",H22+G23) -> 120 | I23: =IF(C6="","",H23/B23) -> 60 | J23: =IF(C6="","",F23/I23) -> -0.6666666667
B24: =IF(C7="","",B7) -> 3 | C24: 780 | D24: 750 | E24: 30 | F24: =IF(B24="","",E24+F23) -> -10 | G24: 30 | H24: =IF(G24="","",H23+G24) -> 150 | I24: 50 | J24: -0.2
B25: 4 | C25: 790 | D25: 835 | E25: -45 | F25: -55 | G25: 45 | H25: 195 | I25: 48.75 | J25: -1.128205128
B26: 5 | C26: 850 | D26: 910 | E26: -60 | F26: -115 | G26: 60 | H26: 255 | I26: 51 | J26: -2.254901961
B27: 6 | C27: 950 | D27: 890 | E27: 60 | F27: -55 | G27: 60 | H27: 315 | I27: 52.5 | J27: -1.047619048
F29: =IF(B29="","",E29+F28) -> 
B35: =IF(B18="","",B18) ->  | F35: =SUM(E22:E34) -> -55 | G35: =SUM(G22:G34) -> 315
F38: MAD = | G38: =CONCATENATE(G35," / ",COUNT(G22:G34)," = ",FIXED(G35/COUNT(G22:G34),1)) -> 315 / 6 = 52.5
F40: Tracking Signal = | G40: =CONCATENATE(F35," / ",FIXED(G35/COUNT(G22:G34),1)," = ",FIXED(F35/(G35/COUNT(G22:G34)),1)) -> -55 / 52.5 = -1.0
